Cogmind - Beta 13 @@@ ROGUE MODE // 2024.04.10 @ 09:11:31 Player: Catty Watty Result: Core destroyed Performance ------------- Evolutions (0) 0 Regions Visited (1) 200 Robots Destroyed (6) 30 Value Destroyed (186) 186 Prototype IDs (0) 0 Alien Tech Used (0) 0 Bonus (0) 0 TOTAL SCORE: 416 Bonus ------- None Cogmind --------- Core Integrity 0/250 Matter 159/300 Energy 100/100 System Corruption 0% Temperature Critical (543) Movement Core (250) Ox4 Location -10/Materials Parts ------- > --- POWER (1) -------- Ion Engine > --- PROPULSION (2) --- (None) > --- UTILITY (2) ------ Small Storage Unit > --- WEAPON (2) ------- Medium Laser Medium Laser > --- INVENTORY (8) ---- Ion Engine Peak State ------------ > --- POWER ------------ Ion Engine > --- PROPULSION ------- Light Treads Light Treads > --- UTILITY ---------- Small Storage Unit Sensor Array > --- WEAPON ----------- Medium Laser Medium Laser > --- INVENTORY -------- Ion Engine [Rating: 7] Favorites ----------- Power Ion Engine Engine Ion Engine Propulsion Light Treads Treads Light Treads Utility Small Storage Unit Device Sensor Array Storage Small Storage Unit Weapon Medium Laser Energy Gun Medium Laser Build | -11 -10 ------- Run | Yrd Mat Slots Evolved . | . . Power . | . . Propulsion . | . . Utility . | . . Weapon . | . . Parts Attached 7 | 6 1 Power 1 | 1 . Engine 1 | 1 . Core . | . . Reactor . | . . Propulsion 2 | 2 . Treads 2 | 2 . Leg . | . . Wheel . | . . Hover . | . . Flight . | . . Utility 2 | 1 1 Device 1 | . 1 Storage 1 | 1 . Processor . | . . Hackware . | . . Protection . | . . Artifact . | . . Weapon 2 | 2 . Energy Gun 2 | 2 . Energy Cannon . | . . Ballistic Gun . | . . Ballistic Cannon . | . . Launcher . | . . Special Weapon . | . . Impact Weapon . | . . Slashing Weapon . | . . Piercing Weapon . | . . Special Melee Weapon . | . . Unidentified Prototypes . | . . Parts Lost 3 | . 3 Power . | . . Propulsion 2 | . 2 Utility 1 | . 1 Weapon . | . . Highest Loss Streak 3 | . 3 To Critical Strikes . | . . Average Slot Usage (%) 80 | . 80 Engine 14 | . 14 Treads 19 | . 19 Device 3 | . 3 Storage 14 | . 14 Energy Gun 28 | . 28 Naked Turns . | . . Heaviest Build 14 | 14 14 Greatest Support 40 | 40 40 Greatest Overweight (x) 4 | 3 4 Average Overweight (x) . | . . Largest Inventory Capacity 8 | 8 8 Average Capacity 7 | 7 8 Most Carried 2 | 2 1 Average Carried . | . 1 Final Capacity 8 | 8 8 Final Carried 1 | 1 1 Class Distribution -------------------- 100% | Mutant Dominant Class ---------------- Mutant | -10/Materials Resources | -11 -10 ----------- Run | Yrd Mat Matter Collected 228 | 228 . Remotely . | . . Salvage Created 225 | . 225 Parts 8 | . 8 Haulers Intercepted . | . . Recyclers Shooed 1 | . 1 Parts Field Recycled . | . . Retrieved Matter . | . . Parts Self-Destructed . | . . Prevented . | . . Kills | -11 -10 ------- Run | Yrd Mat Combat Hostiles Destroyed 5 | . 5 Guns 5 | . 5 Classes Destroyed 2 | . 2 Watcher 1 | . 1 Grunt 5 | . 5 Best Kill Streak 6 | . 6 Combat Bots Only 5 | . 5 Max Kills in Single Turn 1 | . 1 Gunslinging . | . . Exploded . | . . Melee . | . . Uniques/NPCs Destroyed . | . . Combat | -11 -10 -------- Run | Yrd Mat Hostile Shots Fired 63 | . 63 Missed 18 | . 18 Damage Taken 697 | . 697 Core 260 | . 260 Absorbed by Shields . | . . Core Remaining (%) 100 | 100 . Volleys Fired 20 | . 20 Largest 2 | . 2 Hottest 100 | . 100 Shots Fired 39 | . 39 Gun 39 | . 39 Cannon . | . . Launcher . | . . Special . | . . Kinetic . | . . Thermal 39 | . 39 Explosive . | . . Electromagnetic . | . . Robot Hit Streak 11 | . 11 Robot Miss Streak 3 | . 3 Penetration Max . | . . Secondary Targets 1 | . 1 Max Gunslinging Chain 1 | . 1 Shots Hit Robots 24 | . 24 Core Hits 14 | . 14 Critical Kills . | . . Critical Parts Destroyed . | . . Critical Strikes 3 | . 3 Burn 3 | . 3 Melee Attacks . | . . Impact . | . . Slashing . | . . Piercing . | . . Sneak Attacks . | . . Combat Hostiles . | . . Follow-up Attacks . | . . Damage Inflicted 338 | . 338 Guns 338 | . 338 Cannons . | . . Explosions . | . . Melee . | . . Ramming . | . . Kinetic . | . . Thermal 338 | . 338 Explosive . | . . Electromagnetic . | . . Impact . | . . Slashing . | . . Piercing . | . . Highest Corruption . | . . Average Corruption . | . . Corruption Purged . | . . Corruption Blocked . | . . Overload Shots . | . . Overflow Damage . | . . Projectiles . | . . Explosions . | . . Melee . | . . Knockbacks . | . . Impact . | . . Kinetic . | . . Secondary . | . . Self-Inflicted Damage . | . . Shots . | . . Rammed . | . . Targets Rammed . | . . Kicked . | . . Crushed . | . . Highest Temperature 768 | . 768 Average Temperature 402 | . 402 Received Heat Transfer 270 | . 270 Effects 27 | . 27 Shutdowns 2 | . 2 Energy Bleed 3 | . 3 Interference 1 | . 1 Matter Decay 3 | . 3 Short Circuit 3 | . 3 Damage (minor) 1 | . 1 Damage (major) 9 | . 9 Damage (core) 5 | . 5 Siege Activations . | . . Robots Corrupted . | . . Combat Hostiles . | . . Parts Fried . | . . Impact Corruptions . | . . Robots Melted . | . . Combat Hostiles . | . . Parts Melted 5 | . 5 Heat Transferred 1221 | . 1221 Parts Sabotaged . | . . Parts Stolen . | . . Parts Stripped . | . . Power Chain Reactions . | . . Alert | -11 -10 ------- Run | Yrd Mat Peak Influence 127 | . 127 Initial . | . . Average 28 | . 57 Maximum Alert Level . | . . Low Security (%) 100 | 100 100 Level 1 . | . . Level 2 . | . . Level 3 . | . . Level 4 . | . . Level 5 . | . . High Security . | . . Max Security . | . . Squads Dispatched 2 | . 2 Investigation 1 | . 1 Extermination . | . . Reinforcement 1 | . 1 Assault . | . . Garrison . | . . Intercept . | . . Searches Triggered . | . . Construction Impeded . | . . Haulers Reinforced . | . . Active Scanning Responses . | . . Cargo Convoy Interrupts . | . . Stealth | -11 -10 --------- Run | Yrd Mat Distress Signals 1 | . 1 Communications Jammed . | . . Distress Signals . | . . Times Spotted 11 | . 11 Peak Tracking Total 6 | . 6 Tactical Retreats . | . . Traps | -11 -10 ------- Run | Yrd Mat Traps Triggered . | . . Indirectly . | . . Trap Hack Attempts . | . . Triggered . | . . Disarmed . | . . Reprogrammed . | . . Reused . | . . Traps Extracted . | . . Installed . | . . Triggered . | . . Machines | -11 -10 ---------- Run | Yrd Mat Machines Disabled . | . . Max in Single Turn . | . . Machines Repaired . | . . Machines Dismantled . | . . Machines Sabotaged . | . . Overloaded Fab Kills . | . . Hacking | -11 -10 --------- Run | Yrd Mat Machines Accessed 1 | . 1 Terminals 1 | . 1 Fabricators . | . . Repair Stations . | . . Recycling Units . | . . Scanalyzers . | . . Garrison Access . | . . Total Hacks 3 | . 3 Successful 2 | . 2 Failed 1 | . 1 Catastrophic 1 | . 1 Database Lockouts . | . . Manual . | . . Terminals 3 | . 3 Fabricators . | . . Repair Stations . | . . Recycling Units . | . . Scanalyzers . | . . Garrison Access . | . . Terminal Hacks 2 | . 2 Record 1 | . 1 Recall Reinforcements 1 | . 1 Fabricator Hacks . | . . Repair Station Hacks . | . . Recycling Unit Hacks . | . . Scanalyzer . | . . Garrison Access Hacks . | . . Unauthorized Hacks . | . . Terminals . | . . Fabricators . | . . Repair Stations . | . . Recycling Units . | . . Scanalyzers . | . . Garrison Access . | . . Data Cores Recovered . | . . Used . | . . Hacking Detections 1 | . 1 Full Trace Events 1 | . 1 Feedback Events . | . . Feedback Blocked . | . . Robot Schematics Acquired . | . . Robots Built . | . . Authchips . | . . Time . | . . Total Robot Build Rating . | . . Part Schematics Acquired . | . . Parts Built . | . . Authchips . | . . Time . | . . Total Part Build Rating . | . . Parts Repaired . | . . Time . | . . Parts Recycled . | . . Recycled Matter . | . . Retrieved Matter . | . . Retrieved Components . | . . Parts Scanalyzed . | . . Part Schematics Acquired . | . . Parts Damaged . | . . Bothacking | -11 -10 ------------ Run | Yrd Mat Used RIF Installer . | . . Robots Hacked . | . . Non-combat . | . . Combat . | . . Robot Hacks Applied . | . . Relay Couplers Released . | . . Fabnet Peak Effective % . | . . Robots Rewired . | . . Allies Hacked . | . . Hacks Repelled . | . . Allies | -11 -10 -------- Run | Yrd Mat Total Allies . | . . Largest Group . | . . Highest-Rated Group . | . . Highest-Rated Ally . | . . Total Orders . | . . Ally Attacks . | . . Total Damage . | . . Kills . | . . Allies Corrupted . | . . Allies Melted . | . . Intel | -11 -10 ------- Run | Yrd Mat Robot Analysis Total . | . . Derelict Logs Recovered . | . . Drone Launches . | . . Drone Recoveries . | . . Exploration | -11 -10 ------------- Run | Yrd Mat Turns Passed 218 | 109 109 Spaces Moved 100 | 71 29 Core 27 | 23 4 Treads 73 | 48 25 Legs . | . . Wheels . | . . Hover . | . . Flight . | . . Fastest Speed 50 | 50 160 Average Speed 149 | 140 172 Slowest Speed 250 | 200 250 Overloaded Moves . | . . Propulsion Burnouts . | . . Robots Hopped . | . . Cave-ins Triggered . | . . Exploration Rate (%) 9 | 4 14 Regions Visited 1 Branch Regions . Pre-discovered Areas . | . . Known Exits Taken . | . . Unknown Exits Taken 1 | 1 . Scrap Searched . | . . Spaces Dug . | . . Terrain Destroyed . | . . Melee . | . . Projectile . | . . AOE . | . . Terrain Rammed . | . . Walls Destroyed . | . . Machines Disabled . | . . Actions | -11 -10 --------- Run | Yrd Mat Total 128 | 78 50 Wait . | . . Move 99 | 70 29 Hop . | . . Pick Up 2 | 2 . Fast Attach 6 | 5 1 Attach 1 | 1 . Detach . | . . Swap . | . . Drop . | . . Fire 20 | . 20 Melee . | . . Ram . | . . Kick . | . . Crush . | . . Escape Stasis . | . . Rewire . | . . Trap . | . . Miscellaneous . | . . Route ------- -11/Scrapyard -10/Materials (discovered 1 exit: [*Min]) History --------- Turn | Location | Event 3 | -11/Scrapyard | Discovered new exit (range 15) 110 | -11/Scrapyard | Entered Materials 158 | -10/Materials | Discovered new exit (range 15) 213 | -10/Materials | Core integrity fell below 50% 216 | -10/Materials | Core integrity fell below 20% 220 | -10/Materials | Core destroyed Last Messages --------------- Overheating: Core damaged (-47). Overheating: Energy bleed (-33). G-34 Mercenary suffers critical hit (Burn). Ion Engine melted. Heat Sink melted. G-34 Mercenary destroyed. Overheating: Matter decay (-33). Ion Engine broken. Overheating: Short circuit. Med. Laser broken. Overheating: Short circuit. Overheating: Matter decay (-44). Overheating: Broken Med. Laser damaged (-3). Overheating: Sml. Storage Unit damaged (-50). Overheating: Core damaged (-42). Overheating: Core damaged (-35). Overheating: Core damaged (-45). Med. Laser broken. Overheating: Short circuit. Overheating: Core damaged (-37). Map ----- +----------------------------------------------------+ | ?????????????????????????????????????????????????? | | ?????????????????????????????????????????????????? | | ?????????????????????????????????????????????????? | | ?????????????????????????????????????????????????? | | ?????????????????????????????????????????????????? | | ?????????????????????????????????????????????????? | | ?????????????????????????????????????????????????? | | ?????????????????????????????????????????????????? | | ?????????????????????????????????????????????????? | | ?????????????????????????????????????????????????? | | ???????????????????????????? ????????????????? | | ??????????????????????????? #???????????????? | | ??????????????????????????# #???????????????? | | ????????????????#?????????# ###?????????????? | | ????????????????# ???????? #?????????????? | | ????????????????T ??????? +?????????????? | | ????????????????# ?????""" % #?????????????? | | ????????????????# t """"""" ^ % #?????????????? | | ????????????????# """""""% #?????????????? | | ????????????????+ r """"""" #?????????????? | | ????????????????#t """"""" o#?????????????? | | ????????????????# ^ #?????????????? | | ???????????###### ##########????? | | ???????????# ###??? | | ?????????? % T#??? | | ?????????? < =%! @ ""#??? | | ?????????? % #######T## ##### ###??? | | ???????????# ##### ??????# #??# #????? | | ?????????????????????# ???????## ##??# #????? | | ?????????????????????# ????????#####???# #####? | | ?????????????????????# ?????????????????# #? | | ?????????????????????# ?????????????????# #? | | ?????????????????????#??????????????????# #? | | ????????????????????????????????????????#########? | | ?????????????????????????????????????????????????? | | ?????????????????????????????????????????????????? | | ?????????????????????????????????????????????????? | | ?????????????????????????????????????????????????? | | ?????????????????????????????????????????????????? | | ?????????????????????????????????????????????????? | | ?????????????????????????????????????????????????? | | ?????????????????????????????????????????????????? | | ?????????????????????????????????????????????????? | | ?????????????????????????????????????????????????? | | ?????????????????????????????????????????????????? | | ?????????????????????????????????????????????????? | | | | | | | | | +----------------------------------------------------+ Best States ------------- Heat Dissipation 25 Energy Generation 10 Energy Capacity 250 Matter Stores 268 Matter Capacity 300 Sight Range 16 Robot Scan Range 14 Terrain Scan Density 10 Evasion (%) 40 Recoil Reduction 2 Item Schematics ----------------- None Robot Schematics ------------------ None Fabricated ------------ Nothing Alien Tech Used ----------------- None Achievements -------------- GoHome() Challenges ------------ None Game ------ Seed DeepOpticalReconfigurator Manual? 0 Play Time 00:04:40 Cumulative 1.8 hours Start 2024.04.10 @ 09:08:26 End 2024.04.10 @ 09:11:31 Sessions 1 Manual Loads 0 Difficulty Rogue Special Mode None Game No. 7 Rogue 7 Adventurer 0 Explorer 0 Win Type - Total 0 Types 0/0/0/0/0/0/0/0/0 Lore% 1 Gallery% 6 Achievement% 8 Wizard Run 0 Options --------- Layout 1 ASCII 0 Keyboard 0 Movement Arrows Keybinds 0 Fullscreen 1 Font 24/Smallcaps Map View 50x35 Zoom Use 0% Tactical HUD 0 Map Filters NONE Filters NONE Steam 1 RUN: e9a475a5-737b-4615-88f8-542eb95106b1